[Event "Titled Tuesday Blitz March 21 Late 2023"]
[White "Rasulov, Vugar"]
[Black "Sargsyan, Shant"]
[WhiteFideId "13402390"]
[BlackFideId "13306766"]
[WhiteElo "2509"]
[BlackElo "2628"]
[Result "1-0"]
[Round "05"]
[TimeControl "180+2"]
[Date "2023.03.21"]
[WhiteClock "0:00:58"]
[BlackClock "0:00:22"]

1. d4 {[%clk 0:02:57]}  g6 {[%clk 0:02:59]} 2. c4 {[%clk 0:02:57]}  Nf6 {[%clk 0:02:56]} 3. Nf3 {[%clk 0:02:58]}  Bg7 {[%clk 0:02:57]} 4. g3 {[%clk 0:02:58]}  O-O {[%clk 0:02:57]} 5. Bg2 {[%clk 0:02:59]}  c6 {[%clk 0:02:58]} 6. O-O {[%clk 0:02:58]}  d5 {[%clk 0:02:59]} 7. b3 {[%clk 0:02:58]}  Ne4 {[%clk 0:02:58]} 8. Bb2 {[%clk 0:02:57]}  Bf5 {[%clk 0:02:58]} 9. Nc3 {[%clk 0:02:54]}  Nd7 {[%clk 0:02:56]} 10. cxd5 {[%clk 0:02:52]}  Nxc3 {[%clk 0:02:56]} 11. Bxc3 {[%clk 0:02:53]}  cxd5 {[%clk 0:02:55]} 12. Rc1 {[%clk 0:02:53]}  Be4 {[%clk 0:02:55]} 13. Bh3 {[%clk 0:02:49]}  Bxf3 {[%clk 0:02:54]} 14. exf3 {[%clk 0:02:50]}  e6 {[%clk 0:02:54]} 15. Qd2 {[%clk 0:02:43]}  Rc8 {[%clk 0:02:53]} 16. Rc2 {[%clk 0:02:43]}  Nb8 {[%clk 0:02:52]} 17. Rfc1 {[%clk 0:02:41]}  Nc6 {[%clk 0:02:52]} 18. Bf1 {[%clk 0:02:35]}  Qb6 {[%clk 0:02:50]} 19. Kg2 {[%clk 0:02:26]}  Nxd4 {[%clk 0:02:33]} 20. Ba5 {[%clk 0:02:13]}  Rxc2 {[%clk 0:02:23]} 21. Rxc2 {[%clk 0:02:13]}  Qd6 {[%clk 0:02:02]} 22. Bb4 {[%clk 0:02:13]}  Qd8 {[%clk 0:01:53]} 23. Bxf8 {[%clk 0:02:07]}  Qxf8 {[%clk 0:01:46]} 24. Rc7 {[%clk 0:02:03]}  Qb8 {[%clk 0:01:46]} 25. Rc1 {[%clk 0:01:44]}  h5 {[%clk 0:01:42]} 26. h4 {[%clk 0:01:40]}  Nf5 {[%clk 0:01:37]} 27. Qc2 {[%clk 0:01:35]}  Qe5 {[%clk 0:01:20]} 28. Qc7 {[%clk 0:01:29]}  Qb2 {[%clk 0:01:19]} 29. Rc2 {[%clk 0:01:27]}  Qb1 {[%clk 0:00:56]} 30. Bd3 {[%clk 0:01:17]}  Qd1 {[%clk 0:00:50]} 31. Bxf5 {[%clk 0:01:16]}  gxf5 {[%clk 0:00:50]} 32. Qd8+ {[%clk 0:01:09]}  Kh7 {[%clk 0:00:49]} 33. Rc8 {[%clk 0:01:10]}  Qd2 {[%clk 0:00:40]} 34. Qg8+ {[%clk 0:01:06]}  Kg6 {[%clk 0:00:40]} 35. Rc7 {[%clk 0:01:04]}  Qh6 {[%clk 0:00:31]} 36. Qxf7+ {[%clk 0:00:58]}  Kh7 {[%clk 0:00:32]} 37. Rxb7 {[%clk 0:00:58]}  d4 {[%clk 0:00:32]} 38. Rxa7 {[%clk 0:00:58]}  d3 {[%clk 0:00:32]} 39. Rd7 {[%clk 0:00:57]}  d2 {[%clk 0:00:32]} 40. Kf1 {[%clk 0:00:57]}  f4 {[%clk 0:00:28]} 41. Qxg7+ {[%clk 0:00:56]}  Qxg7 {[%clk 0:00:24]} 42. Rxg7+ {[%clk 0:00:57]}  Kxg7 {[%clk 0:00:24]} 43. Ke2 {[%clk 0:00:57]}  fxg3 {[%clk 0:00:22]} 44. fxg3 {[%clk 0:00:58]} 1-0


[Site "https://www.chess.com"]

[Event "Titled Tuesday Blitz March 21 Late 2023"]
[White "Svane, Rasmus"]
[Black "Galaktionov, Artem"]
[WhiteFideId "4657101"]
[BlackFideId "24175471"]
[WhiteElo "2597"]
[BlackElo "2340"]
[Result "1-0"]
[Round "05"]
[TimeControl "180+2"]
[Date "2023.03.21"]
[WhiteClock "0:00:28"]
[BlackClock "0:00:03"]

1. Nf3 {[%clk 0:03:00]}  c6 {[%clk 0:03:00]} 2. g3 {[%clk 0:03:01]}  g6 {[%clk 0:03:00]} 3. Bg2 {[%clk 0:03:02]}  Bg7 {[%clk 0:03:00]} 4. O-O {[%clk 0:03:02]}  Nf6 {[%clk 0:03:00]} 5. c4 {[%clk 0:03:02]}  O-O {[%clk 0:03:01]} 6. d4 {[%clk 0:03:01]}  d6 {[%clk 0:03:01]} 7. Nc3 {[%clk 0:02:59]}  Nbd7 {[%clk 0:02:59]} 8. e4 {[%clk 0:02:59]}  e5 {[%clk 0:02:59]} 9. Be3 {[%clk 0:02:59]}  a5 {[%clk 0:02:56]} 10. h3 {[%clk 0:02:57]}  exd4 {[%clk 0:02:55]} 11. Nxd4 {[%clk 0:02:56]}  Nc5 {[%clk 0:02:55]} 12. Qc2 {[%clk 0:02:55]}  a4 {[%clk 0:02:55]} 13. Rad1 {[%clk 0:02:55]}  Qa5 {[%clk 0:02:55]} 14. Rfe1 {[%clk 0:02:47]}  Re8 {[%clk 0:02:52]} 15. Bf4 {[%clk 0:02:43]}  Rd8 {[%clk 0:02:51]} 16. Nde2 {[%clk 0:02:40]}  Bf8 {[%clk 0:02:51]} 17. Bd2 {[%clk 0:02:30]}  Qb6 {[%clk 0:02:40]} 18. Nc1 {[%clk 0:02:22]}  Be6 {[%clk 0:02:34]} 19. b3 {[%clk 0:02:19]}  axb3 {[%clk 0:02:34]} 20. axb3 {[%clk 0:02:20]}  Ra3 {[%clk 0:02:34]} 21. Nb1 {[%clk 0:02:04]}  Raa8 {[%clk 0:02:18]} 22. Bc3 {[%clk 0:02:04]}  Bg7 {[%clk 0:02:18]} 23. Qb2 {[%clk 0:02:02]}  Ne8 {[%clk 0:02:18]} 24. Bxg7 {[%clk 0:02:01]}  Nxg7 {[%clk 0:02:19]} 25. Rd2 {[%clk 0:01:56]}  Ne8 {[%clk 0:02:04]} 26. Kh2 {[%clk 0:01:53]}  Ra7 {[%clk 0:01:57]} 27. f4 {[%clk 0:01:52]}  Rda8 {[%clk 0:01:55]} 28. g4 {[%clk 0:01:49]}  Bd7 {[%clk 0:01:19]} 29. e5 {[%clk 0:01:32]}  dxe5 {[%clk 0:01:12]} 30. Rxe5 {[%clk 0:01:28]}  Be6 {[%clk 0:00:46]} 31. f5 {[%clk 0:01:22]}  Qc7 {[%clk 0:00:31]} 32. Kh1 {[%clk 0:01:20]}  Nd7 {[%clk 0:00:31]} 33. Re1 {[%clk 0:01:04]}  gxf5 {[%clk 0:00:31]} 34. gxf5 {[%clk 0:00:52]}  Bxf5 {[%clk 0:00:32]} 35. Nc3 {[%clk 0:00:53]}  Nef6 {[%clk 0:00:28]} 36. Rf2 {[%clk 0:00:49]}  Bg6 {[%clk 0:00:27]} 37. Nd1 {[%clk 0:00:41]}  Nh5 {[%clk 0:00:22]} 38. Ne3 {[%clk 0:00:37]}  Qe5 {[%clk 0:00:21]} 39. Qd2 {[%clk 0:00:36]}  Ng3+ {[%clk 0:00:16]} 40. Kg1 {[%clk 0:00:36]}  Qc7 {[%clk 0:00:08]} 41. Ng4 {[%clk 0:00:35]}  Rd8 {[%clk 0:00:06]} 42. Re7 {[%clk 0:00:32]}  Ra1 {[%clk 0:00:04]} 43. Nh6+ {[%clk 0:00:31]}  Kg7 {[%clk 0:00:03]} 44. Nxf7 {[%clk 0:00:28]} 1-0


[Site "https://www.chess.com"]

[Event "Titled Tuesday Blitz March 21 Late 2023"]
[White "Maghsoodloo, Parham"]
[Black "Pakleza, Zbigniew"]
[WhiteFideId "12539929"]
[BlackFideId "1119290"]
[WhiteElo "2647"]
[BlackElo "2410"]
[Result "1-0"]
[Round "05"]
[TimeControl "180+2"]
[Date "2023.03.21"]
[WhiteClock "0:00:27"]
[BlackClock "0:00:01"]

1. d4 {[%clk 0:03:00]}  d6 {[%clk 0:02:56]} 2. e4 {[%clk 0:02:59]}  Nf6 {[%clk 0:02:56]} 3. Nc3 {[%clk 0:02:59]}  c6 {[%clk 0:02:56]} 4. a4 {[%clk 0:02:54]}  a5 {[%clk 0:02:49]} 5. h3 {[%clk 0:02:52]}  Nbd7 {[%clk 0:02:46]} 6. Nf3 {[%clk 0:02:50]}  e5 {[%clk 0:02:46]} 7. Bc4 {[%clk 0:02:50]}  Be7 {[%clk 0:02:46]} 8. O-O {[%clk 0:02:50]}  O-O {[%clk 0:02:46]} 9. Re1 {[%clk 0:02:51]}  h6 {[%clk 0:02:44]} 10. b3 {[%clk 0:02:51]}  Re8 {[%clk 0:02:41]} 11. Ba3 {[%clk 0:02:50]}  Qc7 {[%clk 0:02:40]} 12. Qd2 {[%clk 0:02:46]}  Nf8 {[%clk 0:02:33]} 13. Rad1 {[%clk 0:02:43]}  Ng6 {[%clk 0:02:30]} 14. Bf1 {[%clk 0:02:41]}  Nh7 {[%clk 0:02:23]} 15. g3 {[%clk 0:02:28]}  Ng5 {[%clk 0:02:21]} 16. Nxg5 {[%clk 0:02:29]}  Bxg5 {[%clk 0:02:11]} 17. Qd3 {[%clk 0:02:27]}  Bf6 {[%clk 0:02:01]} 18. dxe5 {[%clk 0:02:12]}  dxe5 {[%clk 0:01:55]} 19. Qe3 {[%clk 0:02:05]}  Bg5 {[%clk 0:01:41]} 20. Qf3 {[%clk 0:02:04]}  Be7 {[%clk 0:01:39]} 21. Bxe7 {[%clk 0:02:02]}  Qxe7 {[%clk 0:01:39]} 22. h4 {[%clk 0:02:02]}  Be6 {[%clk 0:01:32]} 23. Qe3 {[%clk 0:01:55]}  Qb4 {[%clk 0:01:26]} 24. Na2 {[%clk 0:01:51]}  Qa3 {[%clk 0:01:26]} 25. Nc1 {[%clk 0:01:52]}  Nf8 {[%clk 0:01:11]} 26. Qc3 {[%clk 0:01:30]}  Bg4 {[%clk 0:01:07]} 27. f3 {[%clk 0:01:21]}  Bc8 {[%clk 0:01:07]} 28. Nd3 {[%clk 0:01:19]}  Qe7 {[%clk 0:01:05]} 29. Rd2 {[%clk 0:01:13]}  Kh7 {[%clk 0:00:56]} 30. Red1 {[%clk 0:01:11]}  f6 {[%clk 0:00:53]} 31. Qc5 {[%clk 0:01:03]}  Ne6 {[%clk 0:00:48]} 32. Qxe7 {[%clk 0:01:03]}  Rxe7 {[%clk 0:00:49]} 33. c3 {[%clk 0:01:02]}  b5 {[%clk 0:00:36]} 34. Bh3 {[%clk 0:00:59]}  bxa4 {[%clk 0:00:25]} 35. bxa4 {[%clk 0:00:58]}  Rb8 {[%clk 0:00:25]} 36. Bxe6 {[%clk 0:00:58]}  Bxe6 {[%clk 0:00:26]} 37. Nc5 {[%clk 0:00:59]}  Bc4 {[%clk 0:00:24]} 38. Rd8 {[%clk 0:00:55]}  Rb2 {[%clk 0:00:19]} 39. R8d2 {[%clk 0:00:43]}  Rb8 {[%clk 0:00:14]} 40. h5 {[%clk 0:00:43]}  g6 {[%clk 0:00:08]} 41. Rd7 {[%clk 0:00:41]}  Re8 {[%clk 0:00:09]} 42. Rxe7+ {[%clk 0:00:26]}  Rxe7 {[%clk 0:00:09]} 43. Rd7 {[%clk 0:00:27]}  Rxd7 {[%clk 0:00:06]} 44. Nxd7 {[%clk 0:00:28]}  gxh5 {[%clk 0:00:04]} 45. Nxf6+ {[%clk 0:00:28]}  Kg7 {[%clk 0:00:01]} 46. Nd7 {[%clk 0:00:29]}  Bb3 {[%clk 0:00:01]} 47. Nc5 {[%clk 0:00:27]} 1-0


[Site "https://www.chess.com"]

[Event "Titled Tuesday Blitz March 21 Late 2023"]
[White "Postny, Evgeny"]
[Black "Erigaisi Arjun"]
[WhiteFideId "2804344"]
[BlackFideId "35009192"]
[WhiteElo "2509"]
[BlackElo "2737"]
[Result "0-1"]
[Round "05"]
[TimeControl "180+2"]
[Date "2023.03.21"]
[WhiteClock "0:00:09"]
[BlackClock "0:00:16"]

1. e4 {[%clk 0:02:56]}  d6 {[%clk 0:02:59]} 2. d4 {[%clk 0:02:55]}  g6 {[%clk 0:02:59]} 3. c4 {[%clk 0:02:54]}  Bg7 {[%clk 0:02:59]} 4. Nc3 {[%clk 0:02:54]}  Nc6 {[%clk 0:02:58]} 5. d5 {[%clk 0:02:54]}  Bxc3+ {[%clk 0:02:57]} 6. bxc3 {[%clk 0:02:54]}  Na5 {[%clk 0:02:58]} 7. c5 {[%clk 0:02:50]}  dxc5 {[%clk 0:02:50]} 8. c4 {[%clk 0:02:46]}  Nf6 {[%clk 0:02:36]} 9. Bb2 {[%clk 0:02:42]}  O-O {[%clk 0:02:31]} 10. e5 {[%clk 0:02:42]}  Nh5 {[%clk 0:02:27]} 11. Qd2 {[%clk 0:02:29]}  c6 {[%clk 0:02:24]} 12. Be2 {[%clk 0:02:19]}  Ng7 {[%clk 0:02:14]} 13. Nf3 {[%clk 0:02:16]}  b5 {[%clk 0:02:11]} 14. O-O {[%clk 0:01:44]}  Bg4 {[%clk 0:02:10]} 15. e6 {[%clk 0:01:32]}  f6 {[%clk 0:02:08]} 16. Rad1 {[%clk 0:01:23]}  Bxf3 {[%clk 0:02:05]} 17. gxf3 {[%clk 0:01:23]}  Nxc4 {[%clk 0:02:02]} 18. Bxc4 {[%clk 0:01:23]}  bxc4 {[%clk 0:02:03]} 19. dxc6 {[%clk 0:01:16]}  Qb6 {[%clk 0:01:52]} 20. Ba3 {[%clk 0:01:05]}  Qxc6 {[%clk 0:01:51]} 21. Qd7 {[%clk 0:01:04]}  Qxf3 {[%clk 0:01:47]} 22. Bxc5 {[%clk 0:01:01]}  Nf5 {[%clk 0:01:17]} 23. Qd5 {[%clk 0:00:57]}  Qxd5 {[%clk 0:01:16]} 24. Rxd5 {[%clk 0:00:57]}  Rfc8 {[%clk 0:01:16]} 25. Rc1 {[%clk 0:00:56]}  Rc6 {[%clk 0:01:14]} 26. Rxc4 {[%clk 0:00:52]}  Rxe6 {[%clk 0:01:14]} 27. Bb4 {[%clk 0:00:48]}  Kf7 {[%clk 0:01:13]} 28. Rd7 {[%clk 0:00:47]}  a5 {[%clk 0:01:11]} 29. Ba3 {[%clk 0:00:44]}  Rb8 {[%clk 0:01:09]} 30. Rc5 {[%clk 0:00:40]}  Nh4 {[%clk 0:01:04]} 31. Rd1 {[%clk 0:00:39]}  Rd8 {[%clk 0:00:59]} 32. Rb1 {[%clk 0:00:36]}  Rd2 {[%clk 0:00:56]} 33. Rxa5 {[%clk 0:00:34]}  Rxa2 {[%clk 0:00:56]} 34. Bb4 {[%clk 0:00:33]}  Rc2 {[%clk 0:00:49]} 35. Rc5 {[%clk 0:00:31]}  Ra2 {[%clk 0:00:42]} 36. Ra5 {[%clk 0:00:30]}  Rae2 {[%clk 0:00:42]} 37. Ra7 {[%clk 0:00:27]}  g5 {[%clk 0:00:41]} 38. Bc5 {[%clk 0:00:27]}  h5 {[%clk 0:00:39]} 39. h3 {[%clk 0:00:27]}  Ng6 {[%clk 0:00:37]} 40. Be3 {[%clk 0:00:27]}  R2xe3 {[%clk 0:00:34]} 41. fxe3 {[%clk 0:00:27]}  Rxe3 {[%clk 0:00:35]} 42. Kh2 {[%clk 0:00:22]}  Nf4 {[%clk 0:00:35]} 43. h4 {[%clk 0:00:22]}  Rh3+ {[%clk 0:00:31]} 44. Kg1 {[%clk 0:00:23]}  Rxh4 {[%clk 0:00:32]} 45. Re1 {[%clk 0:00:23]}  Ng6 {[%clk 0:00:32]} 46. Kg2 {[%clk 0:00:22]}  Rg4+ {[%clk 0:00:30]} 47. Kf3 {[%clk 0:00:22]}  Rf4+ {[%clk 0:00:30]} 48. Kg3 {[%clk 0:00:23]}  h4+ {[%clk 0:00:30]} 49. Kg2 {[%clk 0:00:23]}  g4 {[%clk 0:00:30]} 50. Re3 {[%clk 0:00:22]}  f5 {[%clk 0:00:28]} 51. Rb7 {[%clk 0:00:21]}  Rd4 {[%clk 0:00:27]} 52. Ra7 {[%clk 0:00:21]}  h3+ {[%clk 0:00:27]} 53. Kh2 {[%clk 0:00:21]}  f4 {[%clk 0:00:25]} 54. Re2 {[%clk 0:00:21]}  f3 {[%clk 0:00:23]} 55. Rb2 {[%clk 0:00:20]}  Nh4 {[%clk 0:00:20]} 56. Ra5 {[%clk 0:00:16]}  Kf6 {[%clk 0:00:17]} 57. Kg3 {[%clk 0:00:13]}  Nf5+ {[%clk 0:00:17]} 58. Kh2 {[%clk 0:00:13]}  e6 {[%clk 0:00:16]} 59. Rba2 {[%clk 0:00:11]}  Re4 {[%clk 0:00:16]} 60. Ra8 {[%clk 0:00:09]}  Re2+ {[%clk 0:00:14]} 61. Rxe2 {[%clk 0:00:09]}  fxe2 {[%clk 0:00:15]} 62. Ra1 {[%clk 0:00:09]}  Nd4 {[%clk 0:00:15]} 63. Kg3 {[%clk 0:00:09]}  Nc2 {[%clk 0:00:16]} 0-1


[Site "https://www.chess.com"]

[Event "Titled Tuesday Blitz March 21 Late 2023"]
[White "Paravyan, David"]
[Black "Mahdavi, Reza"]
[WhiteFideId "4194985"]
[BlackFideId "12595926"]
[WhiteElo "2577"]
[BlackElo "2208"]
[Result "1-0"]
[Round "05"]
[TimeControl "180+2"]
[Date "2023.03.21"]
[WhiteClock "0:00:50"]
[BlackClock "0:00:07"]

1. Nf3 {[%clk 0:03:00]}  Nf6 {[%clk 0:01:49]} 2. c4 {[%clk 0:02:59]}  g6 {[%clk 0:01:49]} 3. Nc3 {[%clk 0:02:59]}  Bg7 {[%clk 0:01:50]} 4. e4 {[%clk 0:03:00]}  d6 {[%clk 0:01:50]} 5. d4 {[%clk 0:03:01]}  O-O {[%clk 0:01:51]} 6. Be2 {[%clk 0:03:01]}  Nbd7 {[%clk 0:01:51]} 7. O-O {[%clk 0:03:01]}  e5 {[%clk 0:01:52]} 8. Be3 {[%clk 0:03:02]}  Re8 {[%clk 0:01:31]} 9. d5 {[%clk 0:03:01]}  Nh5 {[%clk 0:01:30]} 10. g3 {[%clk 0:02:58]}  Bf8 {[%clk 0:01:30]} 11. Nh4 {[%clk 0:02:52]}  Nf4 {[%clk 0:01:25]} 12. Bf3 {[%clk 0:02:47]}  Nh3+ {[%clk 0:01:14]} 13. Kh1 {[%clk 0:02:45]}  Be7 {[%clk 0:01:14]} 14. Ng2 {[%clk 0:02:45]}  Ng5 {[%clk 0:01:12]} 15. Be2 {[%clk 0:02:41]}  h5 {[%clk 0:01:04]} 16. b4 {[%clk 0:02:30]}  Nh7 {[%clk 0:01:00]} 17. Rg1 {[%clk 0:02:22]}  Ndf6 {[%clk 0:01:00]} 18. f3 {[%clk 0:02:19]}  a5 {[%clk 0:00:53]} 19. a3 {[%clk 0:02:18]}  c6 {[%clk 0:00:48]} 20. Qd2 {[%clk 0:02:17]}  cxd5 {[%clk 0:00:47]} 21. cxd5 {[%clk 0:02:15]}  Bh3 {[%clk 0:00:47]} 22. Bb5 {[%clk 0:01:56]}  Nd7 {[%clk 0:00:47]} 23. Ne1 {[%clk 0:01:49]}  axb4 {[%clk 0:00:46]} 24. Na4 {[%clk 0:01:46]}  bxa3 {[%clk 0:00:39]} 25. Nd3 {[%clk 0:01:43]}  Qa5 {[%clk 0:00:37]} 26. Rgb1 {[%clk 0:01:21]}  Rec8 {[%clk 0:00:18]} 27. Nf2 {[%clk 0:01:16]}  Qxd2 {[%clk 0:00:18]} 28. Bxd2 {[%clk 0:01:17]}  Rc2 {[%clk 0:00:19]} 29. Nxh3 {[%clk 0:01:15]}  Rxd2 {[%clk 0:00:19]} 30. Bxd7 {[%clk 0:01:16]}  Nf6 {[%clk 0:00:17]} 31. Bb5 {[%clk 0:01:15]}  Rc8 {[%clk 0:00:18]} 32. Rxa3 {[%clk 0:01:07]}  Rcc2 {[%clk 0:00:18]} 33. Bf1 {[%clk 0:01:05]}  Rxh2+ {[%clk 0:00:18]} 34. Kg1 {[%clk 0:01:06]}  Bd8 {[%clk 0:00:14]} 35. Rc3 {[%clk 0:01:05]}  Ra2 {[%clk 0:00:14]} 36. Rc8 {[%clk 0:01:04]}  Kg7 {[%clk 0:00:09]} 37. Rxd8 {[%clk 0:01:05]}  Rhc2 {[%clk 0:00:10]} 38. Nb6 {[%clk 0:01:03]}  Nh7 {[%clk 0:00:07]} 39. Nc8 {[%clk 0:00:59]}  g5 {[%clk 0:00:07]} 40. Nxd6 {[%clk 0:00:59]}  g4 {[%clk 0:00:08]} 41. Nf5+ {[%clk 0:01:00]}  Kg6 {[%clk 0:00:06]} 42. Rb6+ {[%clk 0:00:52]}  f6 {[%clk 0:00:07]} 43. Rd7 {[%clk 0:00:50]} 1-0


[Site "https://www.chess.com"]

[Event "Titled Tuesday Blitz March 21 Late 2023"]
[White "Santos Ruiz, Miguel"]
[Black "Firouzja, Alireza"]
[WhiteFideId "22291482"]
[BlackFideId "12573981"]
[WhiteElo "2504"]
[BlackElo "2904"]
[Result "0-1"]
[Round "05"]
[TimeControl "180+2"]
[Date "2023.03.21"]
[WhiteClock "0:00:06"]
[BlackClock "0:00:55"]

1. e4 {[%clk 0:02:49]}  e6 {[%clk 0:02:59]} 2. d4 {[%clk 0:02:49]}  d5 {[%clk 0:02:59]} 3. Nd2 {[%clk 0:02:49]}  Nc6 {[%clk 0:02:58]} 4. Ngf3 {[%clk 0:02:45]}  Nf6 {[%clk 0:02:59]} 5. e5 {[%clk 0:02:45]}  Ne4 {[%clk 0:02:55]} 6. Bd3 {[%clk 0:02:44]}  f5 {[%clk 0:02:40]} 7. c3 {[%clk 0:02:19]}  Be7 {[%clk 0:02:38]} 8. O-O {[%clk 0:02:05]}  O-O {[%clk 0:02:37]} 9. Bc2 {[%clk 0:02:02]}  b6 {[%clk 0:02:33]} 10. Ne1 {[%clk 0:01:51]}  Ba6 {[%clk 0:02:30]} 11. Bd3 {[%clk 0:01:51]}  Bxd3 {[%clk 0:02:29]} 12. Nxd3 {[%clk 0:01:52]}  Qd7 {[%clk 0:02:25]} 13. Qe2 {[%clk 0:01:32]}  Nd8 {[%clk 0:02:16]} 14. Nxe4 {[%clk 0:01:16]}  fxe4 {[%clk 0:02:15]} 15. Nf4 {[%clk 0:01:16]}  Bg5 {[%clk 0:02:11]} 16. Nh3 {[%clk 0:01:09]}  Bxc1 {[%clk 0:02:11]} 17. Raxc1 {[%clk 0:01:10]}  Nc6 {[%clk 0:02:10]} 18. f3 {[%clk 0:01:08]}  exf3 {[%clk 0:02:04]} 19. Rxf3 {[%clk 0:01:09]}  Rxf3 {[%clk 0:02:04]} 20. Qxf3 {[%clk 0:01:10]}  Rf8 {[%clk 0:02:04]} 21. Qe2 {[%clk 0:01:08]}  Ne7 {[%clk 0:02:04]} 22. Rf1 {[%clk 0:01:05]}  Rxf1+ {[%clk 0:02:04]} 23. Qxf1 {[%clk 0:01:05]}  c5 {[%clk 0:02:05]} 24. Ng5 {[%clk 0:01:01]}  Nf5 {[%clk 0:02:01]} 25. g4 {[%clk 0:00:58]}  Ne3 {[%clk 0:01:59]} 26. Qf4 {[%clk 0:00:56]}  Nc4 {[%clk 0:01:56]} 27. b3 {[%clk 0:00:56]}  Na5 {[%clk 0:01:56]} 28. h4 {[%clk 0:00:53]}  Nc6 {[%clk 0:01:46]} 29. h5 {[%clk 0:00:49]}  cxd4 {[%clk 0:01:38]} 30. cxd4 {[%clk 0:00:48]}  Qe7 {[%clk 0:01:38]} 31. Nf3 {[%clk 0:00:47]}  h6 {[%clk 0:01:35]} 32. Kg2 {[%clk 0:00:47]}  Qa3 {[%clk 0:01:30]} 33. Qd2 {[%clk 0:00:36]}  Nb4 {[%clk 0:01:29]} 34. Kg3 {[%clk 0:00:36]}  Nc6 {[%clk 0:01:15]} 35. g5 {[%clk 0:00:35]}  Ne7 {[%clk 0:01:14]} 36. Nh4 {[%clk 0:00:34]}  hxg5 {[%clk 0:01:12]} 37. Qxg5 {[%clk 0:00:34]}  Kf7 {[%clk 0:01:12]} 38. h6 {[%clk 0:00:34]}  gxh6 {[%clk 0:01:08]} 39. Qf6+ {[%clk 0:00:34]}  Ke8 {[%clk 0:01:08]} 40. Qxe6 {[%clk 0:00:27]}  Qc1 {[%clk 0:01:05]} 41. Nf3 {[%clk 0:00:21]}  Qe3 {[%clk 0:01:04]} 42. Qf6 {[%clk 0:00:19]}  Qe4 {[%clk 0:01:02]} 43. e6 {[%clk 0:00:14]}  Nf5+ {[%clk 0:01:02]} 44. Kh2 {[%clk 0:00:09]}  Qf4+ {[%clk 0:01:01]} 45. Kg2 {[%clk 0:00:07]}  Qg3+ {[%clk 0:01:00]} 46. Kf1 {[%clk 0:00:07]}  Qxf3+ {[%clk 0:01:00]} 47. Ke1 {[%clk 0:00:08]}  Qe4+ {[%clk 0:01:00]} 48. Kf1 {[%clk 0:00:08]}  Ne3+ {[%clk 0:00:56]} 49. Kg1 {[%clk 0:00:06]}  Qg2# {[%clk 0:00:55]} 0-1


[Site "https://www.chess.com"]

[Event "Titled Tuesday Blitz March 21 Late 2023"]
[White "Manukyan, Sargis A."]
[Black "Alekseenko, Kirill"]
[WhiteFideId "13303970"]
[BlackFideId "4135539"]
[WhiteElo "2187"]
[BlackElo "2683"]
[Result "0-1"]
[Round "05"]
[TimeControl "180+2"]
[Date "2023.03.21"]
[WhiteClock "0:01:12"]
[BlackClock "0:00:08"]

1. d4 {[%clk 0:03:00]}  d5 {[%clk 0:03:00]} 2. c4 {[%clk 0:03:00]}  dxc4 {[%clk 0:03:01]} 3. e4 {[%clk 0:03:00]}  Nf6 {[%clk 0:03:00]} 4. e5 {[%clk 0:02:59]}  Nd5 {[%clk 0:03:01]} 5. Bxc4 {[%clk 0:03:00]}  Nb6 {[%clk 0:03:01]} 6. Bb3 {[%clk 0:03:01]}  Nc6 {[%clk 0:03:02]} 7. Ne2 {[%clk 0:03:01]}  Bf5 {[%clk 0:03:03]} 8. Nbc3 {[%clk 0:03:01]}  e6 {[%clk 0:03:03]} 9. O-O {[%clk 0:03:01]}  Qd7 {[%clk 0:03:03]} 10. Be3 {[%clk 0:03:02]}  O-O-O {[%clk 0:03:04]} 11. Qc1 {[%clk 0:03:01]}  Kb8 {[%clk 0:03:00]} 12. Rd1 {[%clk 0:03:01]}  Nb4 {[%clk 0:02:59]} 13. f3 {[%clk 0:02:59]}  N4d5 {[%clk 0:02:56]} 14. Bf2 {[%clk 0:02:58]}  h5 {[%clk 0:02:56]} 15. Ne4 {[%clk 0:02:58]}  Be7 {[%clk 0:02:45]} 16. Nc5 {[%clk 0:02:58]}  Qc8 {[%clk 0:02:46]} 17. a4 {[%clk 0:02:58]}  Nd7 {[%clk 0:02:35]} 18. a5 {[%clk 0:02:55]}  a6 {[%clk 0:02:30]} 19. Nc3 {[%clk 0:02:50]}  Nxc5 {[%clk 0:01:53]} 20. dxc5 {[%clk 0:02:47]}  Nb4 {[%clk 0:01:30]} 21. Qf4 {[%clk 0:02:32]}  Nd3 {[%clk 0:01:19]} 22. Rxd3 {[%clk 0:02:32]}  Rxd3 {[%clk 0:01:16]} 23. Bc4 {[%clk 0:02:29]}  g5 {[%clk 0:00:53]} 24. Qc1 {[%clk 0:02:29]}  Rhd8 {[%clk 0:00:44]} 25. c6 {[%clk 0:02:26]}  bxc6 {[%clk 0:00:34]} 26. Ne4 {[%clk 0:02:05]}  Rd1+ {[%clk 0:00:32]} 27. Qxd1 {[%clk 0:02:03]}  Rxd1+ {[%clk 0:00:32]} 28. Rxd1 {[%clk 0:02:04]}  Bxe4 {[%clk 0:00:28]} 29. fxe4 {[%clk 0:02:05]}  Qb7 {[%clk 0:00:28]} 30. Rd3 {[%clk 0:02:00]}  Ka8 {[%clk 0:00:13]} 31. Rb3 {[%clk 0:02:01]}  Qc8 {[%clk 0:00:13]} 32. g3 {[%clk 0:01:48]}  Qf8 {[%clk 0:00:13]} 33. Bxa6 {[%clk 0:01:47]}  Bc5 {[%clk 0:00:14]} 34. Bb7+ {[%clk 0:01:43]}  Ka7 {[%clk 0:00:14]} 35. a6 {[%clk 0:01:24]}  Bxf2+ {[%clk 0:00:14]} 36. Kxf2 {[%clk 0:01:25]}  Qc5+ {[%clk 0:00:14]} 37. Re3 {[%clk 0:01:25]}  g4 {[%clk 0:00:09]} 38. Ke2 {[%clk 0:01:18]}  Qc2+ {[%clk 0:00:09]} 39. Ke1 {[%clk 0:01:18]}  Qc1+ {[%clk 0:00:09]} 40. Kf2 {[%clk 0:01:17]}  Qxb2+ {[%clk 0:00:10]} 41. Re2 {[%clk 0:01:18]}  Qxe5 {[%clk 0:00:10]} 42. Rc2 {[%clk 0:01:15]}  Qd4+ {[%clk 0:00:09]} 43. Kf1 {[%clk 0:01:12]}  Qd1+ {[%clk 0:00:09]} 44. Kf2 {[%clk 0:01:10]}  Qxc2+ {[%clk 0:00:09]} 45. Ke3 {[%clk 0:01:10]}  Qc3+ {[%clk 0:00:08]} 46. Kf4 {[%clk 0:01:11]}  Qf6+ {[%clk 0:00:08]} 47. Ke3 {[%clk 0:01:11]}  e5 {[%clk 0:00:08]} 48. h4 {[%clk 0:01:10]}  Qf3+ {[%clk 0:00:09]} 49. Kd2 {[%clk 0:01:10]}  Qxe4 {[%clk 0:00:08]} 50. Bxc6 {[%clk 0:01:11]}  Qxc6 {[%clk 0:00:08]} 51. Ke3 {[%clk 0:01:12]}  Qf3+ {[%clk 0:00:08]} 52. Kd2 {[%clk 0:01:12]}  Qxg3 {[%clk 0:00:08]} 0-1


[Site "https://www.chess.com"]